bitfinex/quotes_BTCUSD_20260311
["timestamp","ask_amount","ask_price","bid_price","bid_amount"]
[1773236813644,0.11848104,70421.0,70390.0,0.00148]
[1773236813891,0.11848104,70421.0,70391.0,0.00148]
[1773236814110,0.00148,70420.0,70391.0,0.00148]
[1773236814628,0.11996104,70420.0,70391.0,0.00148]
[1773236815250,0.11996104,70420.0,70389.0,0.07103382]
[1773236815453,0.11848104,70418.0,70389.0,0.07103382]
[1773236815853,0.11848104,70418.0,70387.0,0.07103382]
[1773236815854,0.11848104,70418.0,70388.0,0.00148]
[1773236816473,0.11848104,70418.0,70387.0,0.07103382]
[1773236816677,0.20897345,70417.0,70367.0,0.07105603]
[1773236816874,0.11848104,70418.0,70366.0,0.0002]
[1773236816875,0.40968539,70399.0,70366.0,0.0002]
[1773236817074,0.502993,70394.0,70358.0,0.08250508]
[1773236817383,0.11848104,70391.0,70358.0,0.08250508]
[1773236817536,0.11848104,70388.0,70358.0,0.08250508]
[1773236817737,0.11848104,70388.0,70350.0,0.0002]
[1773236817940,0.03234816,70385.0,70350.0,0.07127221]
[1773236818200,0.11848104,70379.0,70350.0,0.07127271]
[1773236818488,0.11848104,70377.0,70350.0,0.07127271]
[1773236818617,0.00148,70376.0,70350.0,0.07127271]
[1773236818819,0.11848104,70386.0,70351.0,0.39714335]
[1773236818820,0.00148,70375.0,70351.0,0.39714335]
[1773236819018,0.00148,70374.0,70351.0,0.00148]
[1773236819219,0.00148,70373.0,70351.0,0.00148]
[1773236819421,0.00148,70372.0,70352.0,0.07107118]
[1773236820034,0.00148,70372.0,70353.0,0.00148]
[1773236820465,0.07204426,70379.0,70354.0,0.51043278]
[1773236820626,0.07102474,70398.0,70354.0,0.39566335]
[1773236820958,0.00148,70397.0,70355.0,0.11469443]
[1773236821117,0.115259,70396.0,70352.0,0.07107118]
[1773236821332,0.07103079,70392.0,70357.0,0.07106613]
[1773236821671,0.07103079,70392.0,70356.0,0.001405]
[1773236821871,0.07103079,70392.0,70344.0,0.14584]
[1773236821872,0.782697,70389.0,70346.0,0.07100224]
[1773236822019,0.12695276,70380.0,70345.0,0.07107813]
[1773236822220,0.11848104,70377.0,70343.0,0.07107965]
[1773236822427,0.11848104,70377.0,70343.0,0.07092965]
[1773236822631,0.00148,70379.0,70341.0,0.14696007]
[1773236822632,0.11848104,70375.0,70341.0,0.14696007]
[1773236822832,0.816048,70372.0,70341.0,0.14688507]
[1773236823184,0.11996104,70371.0,70341.0,0.14681007]
[1773236823347,0.07105502,70368.0,70341.0,0.14673507]
[1773236823526,0.11848104,70367.0,70341.0,0.14666007]
[1773236823731,0.11848104,70367.0,70341.0,0.14651007]
[1773236823982,0.11848104,70367.0,70341.0,0.14643507]
[1773236824186,0.11848104,70365.0,70341.0,0.14636007]
[1773236824506,0.11848104,70365.0,70341.0,0.14621007]
[1773236824666,0.11848104,70365.0,70346.0,0.000125]
[1773236824879,0.11848104,70365.0,70346.0,5e-05]
[1773236825121,0.11848104,70365.0,70341.0,0.14621009]
[1773236825122,0.11848104,70365.0,70341.0,0.07510333]
[1773236825336,0.11848104,70365.0,70341.0,0.07502833]
[1773236825495,0.11848104,70363.0,70324.0,0.07109896]
[1773236825690,0.07105906,70364.0,70323.0,0.07109999]
[1773236825691,0.03234816,70360.0,70323.0,0.07109999]
[1773236826051,0.07105906,70364.0,70313.0,0.08733428]
[1773236826052,0.34464235,70348.0,70313.0,0.08733428]
[1773236826259,0.03234816,70345.0,70303.0,0.0883286]
[1773236826465,0.11848104,70338.0,70303.0,0.15944899]
[1773236826679,0.11848104,70336.0,70303.0,0.15944899]
[1773236827006,0.11848104,70334.0,70303.0,0.0883286]
[1773236827211,0.00148,70335.0,70301.0,0.01124]
[1773236827212,1.338234,70328.0,70301.0,0.01124]
[1773236827483,0.07109847,70325.0,70300.0,0.08112295]
[1773236827640,0.00148,70324.0,70300.0,0.08112295]
[1773236827851,0.00148,70323.0,70300.0,0.08112295]
[1773236828209,0.00148,70323.0,70300.0,0.08112278]
[1773236828415,0.00148,70322.0,70300.0,0.08112278]
[1773236829286,0.07109595,70328.0,70300.0,0.08112278]
[1773236829425,0.14596,70349.0,70290.0,0.07113184]
[1773236829426,0.11848104,70319.0,70290.0,0.07113184]
[1773236829636,0.00148,70318.0,70294.0,0.39566335]
[1773236829905,0.00148,70317.0,70294.0,0.39566335]
[1773236830106,0.07109602,70328.0,70295.0,0.00148]
[1773236830315,0.14596,70337.0,70294.0,0.39566335]
[1773236830316,0.07107623,70347.0,70296.0,0.11624943]
[1773236830470,0.21184863,70347.0,70296.0,0.11624943]
[1773236830844,0.07107623,70348.0,70301.0,0.11476943]
[1773236830845,0.1407724,70346.0,70301.0,0.11476943]
[1773236830995,0.00148,70345.0,70301.0,0.11476943]
[1773236831200,0.00148,70344.0,70301.0,0.11476943]
[1773236831372,0.01124,70358.0,70310.0,0.12695276]
[1773236831571,0.11996104,70357.0,70311.0,0.00148]
[1773236831789,0.08230595,70358.0,70303.0,0.07112072]
[1773236831790,0.00148,70356.0,70312.0,0.11624943]
[1773236831968,0.00148,70355.0,70314.0,0.11476943]
[1773236832164,0.00148,70355.0,70316.0,0.11476943]
[1773236832460,0.08230595,70358.0,70303.0,0.07112072]
[1773236832461,0.08230595,70358.0,70318.0,0.11476943]
[1773236832641,0.00148,70354.0,70319.0,0.00144]
[1773236832842,0.00148,70354.0,70320.0,0.00144]
[1773236833043,0.00148,70354.0,70321.0,0.39566335]
[1773236833661,0.07106949,70354.0,70322.0,0.0711015]
[1773236833873,0.00148,70353.0,70323.0,0.11476943]
[1773236834076,0.07106916,70356.0,70323.0,0.11476943]
[1773236834405,0.01124,70358.0,70323.0,0.11476943]
[1773236834406,0.08230536,70358.0,70323.0,0.11476943]
[1773236834605,0.00148,70357.0,70323.0,0.11476943]
[1773236834964,0.00148,70357.0,70324.0,0.00148]
[1773236835167,0.01124,70358.0,70326.0,0.11476943]
[1773236835489,0.08230525,70358.0,70326.0,0.11476943]
[1773236835791,0.08230576,70358.0,70328.0,0.11476943]
[1773236835966,0.08230576,70358.0,70327.0,0.07109644]
[1773236836374,0.00148,70357.0,70328.0,0.00148]
[1773236836573,0.00148,70356.0,70328.0,0.00148]
[1773236837312,0.00148,70356.0,70328.0,0.11624943]
[1773236837524,0.08230576,70358.0,70328.0,0.00148]
[1773236837749,0.00148,70355.0,70329.0,0.07109442]
[1773236837921,0.01124,70358.0,70330.0,0.11476943]
[1773236838097,0.07105866,70365.0,70330.0,0.11476943]
[1773236838098,0.07104694,70376.0,70330.0,0.11476943]
[1773236838297,0.07104666,70377.0,70330.0,0.11476943]
[1773236838480,0.00148,70376.0,70330.0,0.11476943]
[1773236839417,0.00148,70375.0,70330.0,0.11476943]
[1773236839622,0.00148,70375.0,70332.0,0.11476943]
[1773236839921,0.07104896,70374.0,70334.0,0.13364937]
[1773236840138,0.07252857,70375.0,70334.0,0.13364937]
[1773236840139,0.00022001,70365.0,70334.0,0.13364937]
[1773236840353,0.07102474,70398.0,70340.0,0.12695276]
[1773236840584,0.16870616,70405.0,70347.0,0.13364937]
[1773236840714,0.00148,70404.0,70353.0,0.13364937]
[1773236841065,0.00148,70403.0,70361.0,0.13364937]
[1773236841387,0.17994616,70415.0,70363.0,0.13364937]
[1773236841601,0.00144,70412.0,70363.0,0.13364937]
[1773236841802,0.07101163,70411.0,70365.0,0.07105805]
[1773236842085,0.07101163,70411.0,70366.0,0.13364937]
[1773236842518,0.07101163,70411.0,70368.0,0.13364937]
[1773236843296,0.00144,70410.0,70368.0,0.13364937]
[1773236843485,0.0017788,70410.0,70368.0,0.13364937]
[1773236843940,0.07101364,70409.0,70371.0,0.07105199]
[1773236844265,0.00144,70408.0,70371.0,0.07105199]
[1773236844489,0.00144,70407.0,70372.0,0.13364937]
[1773236845652,0.0017788,70407.0,70372.0,0.13364937]
[1773236845795,1.617832,70402.0,70352.0,0.49981264]
[1773236845997,0.0710197,70403.0,70339.0,0.42874213]
[1773236845998,0.1351477,70389.0,70339.0,0.42874213]
[1773236846223,0.544358,70386.0,70340.0,0.00148]
[1773236846464,0.1351477,70383.0,70329.0,0.07109442]
[1773236846634,0.1351477,70367.0,70334.0,0.00144]
[1773236846835,0.1351477,70365.0,70330.0,0.00144]
[1773236847038,0.00144,70366.0,70316.0,0.07110684]
[1773236847039,0.612444,70364.0,70316.0,0.07110684]
[1773236847246,0.00144,70366.0,70315.0,1e-08]
[1773236847247,0.34470202,70348.0,70315.0,1e-08]
[1773236847390,0.1365877,70347.0,70315.0,1e-08]
[1773236847633,0.1351477,70347.0,70316.0,0.00144]
[1773236847836,0.07107825,70345.0,70317.0,0.07110656]
[1773236848104,0.07107825,70345.0,70316.0,0.07254727]
[1773236848433,0.1351477,70344.0,70316.0,0.00144]
[1773236848635,0.1351477,70344.0,70313.0,1e-08]
[1773236849617,0.1351477,70342.0,70313.0,1e-08]
[1773236849873,0.1351477,70340.0,70313.0,1e-08]
[1773236850494,0.07108229,70341.0,70314.0,0.00148]
[1773236850695,0.00148,70340.0,70314.0,0.00148]
[1773236851056,0.07107118,70352.0,70315.0,0.13364937]
[1773236851224,0.07107118,70352.0,70314.0,0.00148]
[1773236851225,0.00148,70355.0,70318.0,0.13364937]
[1773236851383,0.07105805,70365.0,70320.0,0.07074816]
[1773236851384,0.00148,70359.0,70320.0,0.07074816]
[1773236851589,0.0710419,70381.0,70328.0,0.03234816]
[1773236851786,0.0725219,70381.0,70333.0,0.07074816]
[1773236851990,0.00148,70380.0,70335.0,0.0384]
[1773236852187,0.00148,70380.0,70336.0,0.13364937]
[1773236852425,0.00148,70380.0,70338.0,0.13364937]
[1773236852665,0.48450982,70379.0,70339.0,0.00148]
[1773236852804,0.0710419,70381.0,70340.0,0.13364937]
[1773236853199,0.34935627,70379.0,70341.0,0.00148]
[1773236853606,0.1351477,70378.0,70341.0,0.00148]
[1773236854068,0.07104593,70377.0,70339.0,0.07108432]
[1773236854222,0.1351477,70376.0,70338.0,0.001]
[1773236854423,0.1351477,70376.0,70318.0,0.164375]
[1773236854424,0.1351477,70373.0,70326.0,0.00144]
[1773236854602,0.1706,70375.0,70326.0,0.00144]
[1773236854603,0.7049,70370.0,70326.0,0.00144]
[1773236854943,0.7049,70370.0,70318.0,0.07110554]
[1773236854944,0.1351477,70365.0,70318.0,0.07103054]
[1773236855153,0.03382816,70372.0,70315.0,0.07145853]
[1773236855154,0.1351477,70359.0,70315.0,0.07145853]
[1773236855353,0.1351477,70357.0,70315.0,0.07138353]
[1773236855562,1.665222,70356.0,70315.0,0.000125]
[1773236855718,0.03234816,70351.0,70307.0,0.07111597]
[1773236855916,0.12695276,70360.0,70304.0,0.0724437]
[1773236855917,0.1351477,70348.0,70305.0,0.07111869]
[1773236856115,0.1351477,70348.0,70302.0,0.07111869]
[1773236856116,0.1351477,70343.0,70302.0,0.0711197]
[1773236856316,0.07107724,70346.0,70302.0,0.0710447]
[1773236856317,0.1351477,70339.0,70302.0,0.0710447]
[1773236856522,0.00148,70338.0,70302.0,0.0709697]
[1773236856728,0.1366277,70337.0,70302.0,0.07104673]
[1773236856929,0.1351477,70335.0,70302.0,0.07097173]
[1773236857135,0.1351477,70333.0,70301.0,0.01124]
[1773236857336,0.1351477,70333.0,70292.0,0.07113084]
[1773236857337,0.1351477,70329.0,70286.0,0.07113792]
[1773236857548,0.1351477,70327.0,70287.0,0.001325]
[1773236857754,0.1351477,70327.0,70301.0,0.000125]
[1773236857936,0.00148,70326.0,70301.0,0.00145]
[1773236858141,0.00148,70326.0,70301.0,0.001375]
[1773236858142,0.07109847,70325.0,70301.0,0.001375]
[1773236858337,0.1351477,70324.0,70300.0,0.0014]
[1773236858790,0.1351477,70324.0,70300.0,0.00125]
[1773236858986,0.07109847,70325.0,70300.0,0.001175]
[1773236859161,0.07109847,70325.0,70300.0,0.0011]
[1773236859365,0.00148,70324.0,70300.0,0.0011]
[1773236859726,0.07108836,70335.0,70300.0,0.0011]
[1773236859943,0.00148,70340.0,70301.0,0.13364937]
[1773236860105,0.07108432,70339.0,70302.0,0.07112173]
[1773236860321,0.07106963,70354.0,70303.0,0.13747115]
[1773236860496,0.13545769,70353.0,70303.0,0.13747115]
[1773236860676,0.13545769,70352.0,70304.0,0.00144]
[1773236861140,0.12716583,70350.0,70305.0,0.00144]
[1773236861280,0.13545769,70346.0,70305.0,0.00144]
[1773236861481,0.13545769,70344.0,70305.0,0.00144]
[1773236862001,0.13545769,70344.0,70302.0,0.07112173]
[1773236862204,0.13545769,70329.0,70300.0,0.07512342]
[1773236862382,0.13545769,70327.0,70300.0,0.07212342]
[1773236862591,0.13545769,70327.0,70305.0,0.001]
[1773236863461,0.13545769,70327.0,70300.0,0.07112356]
[1773236863944,0.13645769,70327.0,70296.0,0.07112695]
[1773236864706,0.20655515,70326.0,70294.0,0.0711278]
[1773236864907,0.12716583,70320.0,70285.0,0.00045831]
[1773236865106,0.12716583,70320.0,70285.0,0.07159659]
[1773236865107,0.13545769,70318.0,70285.0,0.07159659]
[1773236865502,0.13545769,70318.0,70297.0,0.0002]
[1773236866064,0.12693769,70318.0,70297.0,0.0002]
[1773236866197,0.00148,70317.0,70297.0,0.0002]
[1773236866416,0.13545769,70316.0,70285.0,0.07159659]
[1773236866618,0.07110858,70315.0,70285.0,0.07159659]
[1773236867238,0.00148,70314.0,70285.0,0.07159659]
[1773236867448,0.13693769,70314.0,70285.0,0.00045831]
[1773236867653,0.13693769,70314.0,70286.0,0.07113792]
[1773236867819,0.13545769,70314.0,70286.0,0.07113792]
[1773236868013,0.13545769,70312.0,70285.0,0.00045831]
[1773236868468,0.13545769,70312.0,70284.0,1e-08]
[1773236868666,0.13545769,70310.0,70284.0,1e-08]
[1773236868968,0.13545769,70310.0,70275.0,0.1624604]
[1773236869351,0.07111262,70311.0,70249.0,0.10950215]
[1773236869352,0.13545769,70299.0,70249.0,0.10950215]
[1773236869518,0.13545769,70297.0,70256.0,0.16500138]
[1773236869720,0.13862569,70295.0,70256.0,0.16584088]
[1773236870354,0.13862569,70293.0,70256.0,0.16584088]
[1773236870755,0.13862569,70291.0,70256.0,0.09467299]
[1773236870952,0.07261184,70292.0,70256.0,1e-08]
[1773236870953,0.520276,70289.0,70256.0,1e-08]
[1773236871153,1.214451,70285.0,70256.0,1e-08]
[1773236871367,0.13862569,70282.0,70246.0,1e-08]
[1773236871590,0.13862569,70269.0,70244.0,1e-08]
[1773236871786,0.13862569,70267.0,70236.0,0.00213825]
[1773236872350,0.12716583,70270.0,70236.0,0.00213825]
[1773236872351,0.14568,70266.0,70236.0,0.00213825]
[1773236872632,0.13862569,70264.0,70236.0,0.00213825]
[1773236872823,0.13862569,70262.0,70236.0,0.00213825]
[1773236873026,0.13862569,70262.0,70231.0,0.00012]
[1773236873382,0.16353251,70259.0,70231.0,0.00012]
[1773236873703,0.16353251,70259.0,70227.0,0.09628314]
[1773236873704,0.13862569,70258.0,70227.0,0.09628314]
[1773236873930,0.28578569,70257.0,70227.0,0.16748008]
[1773236874106,0.13862569,70257.0,70227.0,0.16748008]
[1773236874324,0.00148,70256.0,70227.0,0.16748008]
[1773236874490,0.00148,70256.0,70227.0,0.09628314]
[1773236874837,0.13862569,70253.0,70227.0,0.09628314]
[1773236875592,0.28434569,70253.0,70227.0,0.09628314]
[1773236875802,0.00148,70252.0,70227.0,0.16748051]
[1773236875993,0.07117032,70254.0,70227.0,0.09628314]
[1773236876261,0.00148,70253.0,70227.0,0.16748058]
[1773236876693,0.07117032,70254.0,70227.0,0.16748055]
[1773236876906,0.00148,70252.0,70227.0,0.16748055]
[1773236877322,0.07116627,70258.0,70228.0,0.00148]
[1773236877454,0.00148,70251.0,70228.0,0.00148]
[1773236877672,0.07116627,70259.0,70228.0,0.00148]
[1773236877922,0.00148,70258.0,70227.0,0.16748055]
[1773236878901,0.00035,70254.0,70227.0,0.16748055]
[1773236879092,0.00035,70254.0,70227.0,0.30869909]
[1773236879326,0.00148,70253.0,70227.0,0.30869909]
[1773236879526,0.07115108,70273.0,70228.0,0.14121854]
[1773236879734,0.00148,70272.0,70228.0,0.14121854]
[1773236880132,0.00148,70272.0,70229.0,0.00148]
[1773236880339,0.07115108,70273.0,70227.0,0.16748055]
[1773236880340,0.13862569,70270.0,70227.0,0.16748055]
[1773236880647,0.13862569,70270.0,70228.0,0.07119667]
[1773236880853,0.07115614,70268.0,70231.0,0.40452089]
[1773236881051,0.07115614,70268.0,70233.0,0.14121854]
[1773236881350,0.07114804,70276.0,70233.0,0.14121854]
[1773236881560,0.00148,70275.0,70234.0,0.00148]
[1773236881759,0.00148,70275.0,70231.0,0.40452089]
[1773236881760,0.07114804,70277.0,70236.0,0.14121854]
[1773236881915,0.07114804,70277.0,70239.0,0.14121854]
[1773236882116,0.00148,70276.0,70239.0,0.14121854]
[1773236882326,0.00148,70276.0,70240.0,0.20498022]
[1773236882526,0.07114804,70277.0,70243.0,0.14121854]
[1773236882732,0.07114703,70279.0,70243.0,0.14121854]
[1773236882733,0.07262586,70279.0,70245.0,0.07117944]
[1773236882931,0.07113994,70284.0,70246.0,0.14269854]
[1773236883139,0.07113083,70296.0,70246.0,0.14269854]
[1773236883140,0.08236375,70301.0,70246.0,0.20646022]
[1773236883361,0.07112417,70300.0,70253.0,0.20498022]
[1773236883563,0.07112417,70300.0,70255.0,0.14121854]
[1773236883765,0.00148,70299.0,70257.0,0.14121854]
[1773236883988,0.01272,70301.0,70262.0,0.14121854]
[1773236884155,0.08384287,70301.0,70262.0,0.14121854]
[1773236884324,0.01272,70301.0,70264.0,0.14121854]
[1773236884527,0.08384295,70301.0,70264.0,0.14121854]
[1773236884826,0.01124,70301.0,70268.0,0.14121854]
[1773236885027,0.08384337,70301.0,70268.0,0.14121854]
[1773236885435,0.08384337,70301.0,70269.0,0.00148]
[1773236885630,0.08384337,70301.0,70270.0,0.14121854]
[1773236886077,0.08384337,70301.0,70270.0,0.14111854]
[1773236886505,0.01124,70301.0,70270.0,0.14111854]
[1773236886877,0.08384304,70301.0,70272.0,0.14121854]
[1773236887077,0.08384304,70301.0,70271.0,0.0711531]
[1773236887281,0.08384304,70301.0,70272.0,0.00138]
[1773236887484,0.00148,70300.0,70272.0,0.00138]
[1773236887677,0.00148,70300.0,70273.0,0.00148]
[1773236887900,0.00148,70299.0,70273.0,0.00148]
[1773236888302,0.00148,70299.0,70273.0,0.001305]
[1773236888505,0.00148,70299.0,70264.0,0.07116017]
[1773236888506,0.13862569,70298.0,70262.0,0.07108722]
[1773236888661,0.13862569,70298.0,70262.0,0.07101222]
[1773236888866,0.13862569,70296.0,70262.0,0.07093722]
[1773236889132,0.00148,70295.0,70272.0,0.002]
[1773236889314,0.07112679,70297.0,70272.0,0.00175]
[1773236889315,0.13862569,70294.0,70272.0,0.00175]
[1773236889534,0.14010569,70294.0,70272.0,0.001675]
[1773236889676,0.14010569,70294.0,70272.0,0.0016]
[1773236889879,0.00148,70294.0,70264.0,0.40452089]
[1773236890617,0.13862569,70293.0,70258.0,0.001405]
[1773236890780,0.07113184,70292.0,70259.0,0.07109025]
[1773236890983,0.14010569,70291.0,70259.0,0.07101525]
[1773236891216,0.14010569,70291.0,70259.0,0.07094025]
[1773236891514,0.14010569,70291.0,70259.0,0.07069025]
[1773236891725,0.14010569,70291.0,70259.0,0.07061525]
[1773236891922,0.14010569,70291.0,70259.0,0.07054025]
[1773236892121,0.14010569,70291.0,70259.0,0.07046525]
[1773236892327,0.13862569,70291.0,70264.0,0.001]
[1773236892566,0.07113168,70293.0,70264.0,0.000825]
[1773236892765,0.07135084,70295.0,70262.0,0.40444589]
[1773236893022,0.07135084,70295.0,70263.0,0.0710112]
[1773236893293,0.00148,70294.0,70263.0,0.0710112]
[1773236893648,0.00148,70294.0,70265.0,0.14121854]
[1773236893919,0.00170001,70295.0,70265.0,0.14111854]
[1773236894098,0.00170001,70295.0,70266.0,0.00148]
[1773236894318,0.00022001,70295.0,70266.0,0.00148]
[1773236894522,0.01124,70301.0,70270.0,0.10608873]
[1773236894874,0.08236294,70301.0,70271.0,0.0725331]
[1773236895512,0.00148,70300.0,70271.0,0.0710531]
[1773236895716,0.13862569,70299.0,70265.0,0.001]
[1773236896250,0.13862569,70297.0,70261.0,0.0711612]
[1773236896404,0.16043662,70289.0,70271.0,0.001]
[1773236896607,0.14010569,70288.0,70271.0,0.001]
[1773236896926,0.2097626,70287.0,70266.0,0.07115745]
[1773236897127,0.00148,70286.0,70266.0,0.07105745]
[1773236897426,0.13862582,70285.0,70264.0,0.07115921]
[1773236898243,0.13862569,70283.0,70260.0,0.07116424]
[1773236898408,0.00148,70282.0,70260.0,0.07116424]
[1773236898808,0.14010569,70282.0,70260.0,0.07116424]
[1773236899006,0.07114298,70281.0,70260.0,0.07116424]
[1773236899326,0.13862569,70299.0,70260.0,0.17715297]
[1773236899527,0.07112375,70300.0,70261.0,0.40600089]
[1773236899528,0.13862569,70297.0,70261.0,0.40600089]
[1773236900223,0.13862569,70297.0,70262.0,0.00148]
[1773236900450,0.00148,70298.0,70260.0,0.07196424]
[1773236900451,0.15401138,70289.0,70260.0,0.07196424]
[1773236900656,0.13502251,70288.0,70260.0,0.07196424]
[1773236901035,0.13354251,70286.0,70260.0,0.07196424]
[1773236901567,0.13354251,70286.0,70260.0,0.07096424]
[1773236901760,0.00148,70285.0,70260.0,0.07096424]
[1773236901959,0.00148,70285.0,70261.0,0.39666936]
[1773236902360,0.13502251,70285.0,70261.0,0.39656936]
[1773236902742,0.13502251,70285.0,70261.0,0.07116323]
[1773236902944,0.13502251,70285.0,70256.0,0.07264822]
[1773236903145,0.07113994,70284.0,70262.0,0.07116222]
[1773236903351,0.13354251,70283.0,70261.0,0.07216261]
[1773236903550,0.13354251,70283.0,70255.0,0.07116931]
[1773236903741,0.13354251,70279.0,70251.0,0.34510784]
[1773236904148,0.13354251,70277.0,70251.0,0.07117274]
[1773236904555,0.13354251,70277.0,70251.0,0.07107274]
[1773236904758,0.13354251,70269.0,70249.0,0.0001878]
[1773236904982,0.13354251,70267.0,70249.0,0.0001878]
[1773236905205,0.07115817,70266.0,70246.0,0.07102167]
[1773236905425,0.00148,70265.0,70246.0,0.07102167]
[1773236905627,0.13502251,70265.0,70245.0,0.34304185]
[1773236905833,0.13502251,70265.0,70245.0,0.27631678]
[1773236906123,0.13354251,70259.0,70224.0,0.07120058]
[1773236906321,0.31826619,70260.0,70234.0,1e-08]
[1773236906322,0.13354251,70249.0,70234.0,1e-08]
[1773236906520,0.13354251,70247.0,70227.0,1e-08]
[1773236906724,0.13354251,70239.0,70218.0,0.09717747]
[1773236906874,0.10608873,70250.0,70218.0,0.16838394]
[1773236907070,0.13354251,70249.0,70219.0,0.00148]
[1773236907418,0.00148,70248.0,70220.0,0.07120478]
[1773236907620,0.00148,70247.0,70220.0,0.07110478]
[1773236907771,0.001,70259.0,70220.0,0.17719351]
[1773236908006,0.00148,70258.0,70221.0,0.08712932]
[1773236908204,0.001,70259.0,70231.0,0.39666936]
[1773236908421,0.00148,70258.0,70232.0,0.00148]
[1773236908621,0.13354251,70271.0,70251.0,0.0002]
[1773236908825,0.07114298,70281.0,70251.0,0.0002]
[1773236909255,0.00148,70280.0,70252.0,0.07117235]
[1773236909474,0.13502251,70279.0,70251.0,0.07137264]
[1773236909674,0.13354251,70279.0,70251.0,0.07127264]
[1773236909872,0.13354251,70280.0,70251.0,0.07127264]
[1773236910047,0.07114298,70281.0,70251.0,0.07127264]
[1773236910048,0.13354251,70277.0,70251.0,0.07127264]
[1773236910381,0.00148,70276.0,70251.0,0.07227264]
[1773236910583,0.00148,70276.0,70251.0,0.07127264]
[1773236910730,0.00148,70276.0,70251.0,0.07117264]
[1773236911129,0.11249135,70272.0,70251.0,0.07117308]
[1773236911366,0.14186371,70271.0,70250.0,0.07117437]
[1773236911579,0.14186371,70270.0,70250.0,0.07117437]
[1773236911784,0.14186371,70274.0,70250.0,0.07107437]
[1773236911958,0.1836356,70280.0,70250.0,0.07107437]
[1773236911959,0.14186371,70273.0,70250.0,0.07107437]
[1773236912134,0.00148,70275.0,70250.0,0.07107437]
[1773236912333,0.00148,70275.0,70251.0,0.001]
[1773236912735,0.0004084,70283.0,70251.0,0.001]
[1773236912930,0.14163349,70285.0,70260.0,0.10608873]
[1773236913131,0.00148,70289.0,70261.0,0.39814936]
[1773236913339,0.00148,70289.0,70262.0,0.07116222]
[1773236913538,0.00022001,70296.0,70262.0,0.07116222]
[1773236913539,0.20897345,70310.0,70278.0,0.10608873]
[1773236913881,0.00022001,70317.0,70278.0,0.10608873]
[1773236913882,0.00148,70311.0,70280.0,0.39666936]
[1773236914081,0.00148,70311.0,70281.0,0.00138]
[1773236914292,0.07110279,70321.0,70281.0,0.00138]
[1773236914293,0.20897345,70331.0,70290.0,0.10608873]
[1773236914486,0.00148,70326.0,70291.0,0.08986812]
[1773236914790,0.07109779,70326.0,70292.0,0.00148]
[1773236915089,0.00148,70324.0,70292.0,0.00148]
[1773236915249,0.07131911,70325.0,70292.0,0.00148]
[1773236915250,0.00022001,70325.0,70292.0,0.00148]
[1773236915453,0.00148,70324.0,70300.0,0.10608873]
[1773236915670,0.00170001,70332.0,70310.0,0.10608873]
[1773236915890,0.00170001,70332.0,70300.0,0.21217746]
[1773236915891,0.00170001,70332.0,70311.0,0.00138]
[1773236916087,0.00170001,70332.0,70297.0,0.08975668]
[1773236916088,0.07279196,70332.0,70312.0,0.00148]
[1773236916408,0.13354251,70329.0,70293.0,0.07113083]
[1773236916631,0.13354251,70329.0,70300.0,0.001]
[1773236916769,0.13354251,70329.0,70294.0,0.00148]
[1773236917183,0.13354251,70329.0,70312.0,0.001]
[1773236917406,0.00148,70328.0,70313.0,0.0711106]
[1773236917605,0.00022001,70332.0,70313.0,0.0711106]
[1773236917806,0.0725724,70331.0,70312.0,0.0711106]
[1773236918006,0.0725724,70331.0,70312.0,0.0710106]
[1773236918445,0.00022001,70332.0,70312.0,0.0710106]
[1773236918610,0.00022001,70332.0,70313.0,0.00148]
[1773236919294,0.07131193,70332.0,70313.0,0.00138]
[1773236919507,0.07131193,70332.0,70312.0,0.07082858]
[1773236919712,0.13354251,70331.0,70300.0,0.00148]
[1773236919912,0.13354251,70329.0,70295.0,0.00148]
[1773236920338,0.13354251,70329.0,70295.0,0.00138]
[1773236920546,0.13354251,70329.0,70313.0,0.001]
[1773236920771,0.13354251,70329.0,70291.0,0.07113286]
[1773236920772,0.1389854,70327.0,70288.0,0.07113491]
[1773236921047,0.00148,70328.0,70280.0,0.39666936]
[1773236921048,0.1389854,70322.0,70282.0,0.00144]
[1773236921206,0.1389854,70322.0,70282.0,0.00134]
[1773236921395,0.1389854,70320.0,70282.0,0.07248121]
[1773236921600,0.1389854,70309.0,70274.0,0.07259006]
[1773236921799,0.10594567,70310.0,70272.0,0.07115108]
[1773236921800,0.1389854,70307.0,70272.0,0.07115108]
[1773236922169,0.1389854,70307.0,70234.0,0.10713036]
[1773236922170,0.1389854,70271.0,70234.0,0.10713036]
[1773236922364,0.31783701,70282.0,70234.0,0.10713036]
[1773236922365,0.14532,70274.0,70234.0,0.07118977]
[1773236922657,0.10594567,70282.0,70234.0,0.07118977]
[1773236922658,0.1389854,70272.0,70234.0,0.07118977]
[1773236922807,0.00148,70271.0,70234.0,0.07111477]
[1773236923044,0.00148,70271.0,70234.0,0.07103977]
[1773236923240,0.00148,70270.0,70234.0,0.07096477]
[1773236923494,0.07115513,70269.0,70234.0,0.07071477]
[1773236923842,0.07115513,70269.0,70240.0,0.10594567]
[1773236924198,0.001,70271.0,70234.0,0.07231977]
[1773236924199,0.00148,70268.0,70234.0,0.07231977]
[1773236924411,0.00148,70268.0,70234.0,2.5e-05]
[1773236924612,0.00148,70268.0,70232.0,0.07119059]
[1773236924613,0.1389854,70267.0,70232.0,0.07114059]
[1773236924817,0.1389854,70267.0,70232.0,0.07106559]
[1773236924974,0.1389854,70267.0,70232.0,0.07099059]
[1773236925180,0.00148,70266.0,70232.0,0.07091559]
[1773236925375,0.1389854,70265.0,70232.0,0.07074059]
[1773236925584,0.07116019,70264.0,70232.0,0.07066559]
[1773236925780,0.07116019,70264.0,70231.0,0.07111559]
[1773236926118,0.07116019,70264.0,70226.0,0.0002]
[1773236926119,0.1389854,70259.0,70226.0,0.0002]
[1773236926279,0.1389854,70257.0,70226.0,0.0713235]
[1773236926478,0.10594567,70250.0,70223.0,0.000574]
[1773236926681,0.1389854,70249.0,70223.0,0.07170053]
[1773236926895,0.07216019,70264.0,70223.0,0.07162553]
[1773236927068,0.3112654,70263.0,70223.0,0.07155053]
[1773236927274,0.3112654,70263.0,70223.0,0.07147553]
[1773236927275,0.1389854,70259.0,70223.0,0.07147553]
[1773236927472,0.07116931,70255.0,70223.0,0.07130053]
[1773236927709,0.1404654,70254.0,70223.0,0.07122553]
[1773236927908,0.1404654,70254.0,70223.0,0.07115053]
[1773236928282,0.1389854,70254.0,70223.0,0.07115053]
[1773236928486,0.1389854,70252.0,70223.0,0.07105053]
[1773236929111,0.00148,70251.0,70223.0,0.07105053]
[1773236929333,0.07116931,70255.0,70223.0,0.07105053]
[1773236929542,0.00148,70250.0,70220.0,0.00148]
[1773236929732,0.14208528,70248.0,70222.0,0.07110275]